[Event "Betsys MČR v online bleskovém šachu 2021"]
[Site "Chess.com"]
[Date "2021.04.17"]
[Round "4"]
[White "Trickov"]
[Black "elftom"]
[Result "1-0"]
[WhiteElo "2391"]
[BlackElo "1960"]
[TimeControl "180+1"]
[EndTime "9:37:10 PDT"]
[Termination "Uživatel Trickov zvítězil na čas"]

1. d4 {[%clk 0:02:58.4]} 1... Nf6 {[%clk 0:02:59.2]} 2. Nf3 {[%clk 0:02:57.6]}
2... c6 {[%clk 0:02:58.2]} 3. c4 {[%clk 0:02:53.8]} 3... e6 {[%clk 0:02:56.2]}
4. g3 {[%clk 0:02:48]} 4... d5 {[%clk 0:02:55.9]} 5. Bg2 {[%clk 0:02:44.4]} 5...
Nbd7 {[%clk 0:02:55.6]} 6. O-O {[%clk 0:02:40.2]} 6... Bd6 {[%clk 0:02:55]} 7.
Qc2 {[%clk 0:02:36]} 7... O-O {[%clk 0:02:54.4]} 8. Nbd2 {[%clk 0:02:28.5]} 8...
a6 {[%clk 0:02:50.6]} 9. e4 {[%clk 0:02:18.9]} 9... dxe4 {[%clk 0:02:49.5]} 10.
Nxe4 {[%clk 0:02:17.8]} 10... Nxe4 {[%clk 0:02:49.2]} 11. Qxe4 {[%clk 0:02:17]}
11... c5 {[%clk 0:02:44.9]} 12. Be3 {[%clk 0:02:07.9]} 12... Nf6 {[%clk
0:02:39.8]} 13. Qc2 {[%clk 0:02:05.3]} 13... h6 {[%clk 0:02:39]} 14. dxc5 {[%clk
0:01:59.8]} 14... Bc7 {[%clk 0:02:28.1]} 15. Bd4 {[%clk 0:01:43.4]} 15... Qe7
{[%clk 0:02:17.3]} 16. Qc3 {[%clk 0:01:30.6]} 16... Rd8 {[%clk 0:02:04.8]} 17.
Ne5 {[%clk 0:01:26.6]} 17... Rb8 {[%clk 0:01:59.8]} 18. Rad1 {[%clk 0:01:20.1]}
18... Ne8 {[%clk 0:01:24.7]} 19. c6 {[%clk 0:01:13.2]} 19... b6 {[%clk
0:01:16.1]} 20. b3 {[%clk 0:01:08.2]} 20... Kh7 {[%clk 0:00:29.6]} 21. f4 {[%clk
0:01:06.1]} 21... f6 {[%clk 0:00:28.9]} 22. Qc2+ {[%clk 0:01:01.1]} 22... f5
{[%clk 0:00:25.6]} 23. Bb2 {[%clk 0:00:55.9]} 23... Nf6 {[%clk 0:00:24.8]} 24.
Rfe1 {[%clk 0:00:53.2]} 24... Rxd1 {[%clk 0:00:19.3]} 25. Rxd1 {[%clk
0:00:51.9]} 25... b5 {[%clk 0:00:17.4]} 26. c5 {[%clk 0:00:47.1]} 26... a5
{[%clk 0:00:14.7]} 27. a3 {[%clk 0:00:46.3]} 27... Ba6 {[%clk 0:00:14.3]} 28. b4
{[%clk 0:00:45.9]} 28... Rd8 {[%clk 0:00:14]} 29. h3 {[%clk 0:00:39.7]} 29...
Nd5 {[%clk 0:00:10.2]} 30. Bxd5 {[%clk 0:00:33]} 30... Rxd5 {[%clk 0:00:09.9]}
31. Rxd5 {[%clk 0:00:32.4]} 31... exd5 {[%clk 0:00:10.5]} 32. Qxf5+ {[%clk
0:00:32.4]} 32... Kg8 {[%clk 0:00:06]} 33. Qd7 {[%clk 0:00:22.1]} 33... Qxd7
{[%clk 0:00:02.8]} 34. cxd7 {[%clk 0:00:21.9]} 34... Kf8 {[%clk 0:00:01.1]} 35.
Nc6 {[%clk 0:00:21.8]} 1-0

[Event "Betsys MČR v online bleskovém šachu 2021"]
[Site "Chess.com"]
[Date "2021.04.17"]
[Round "4"]
[White "polik1112"]
[Black "Berzeger"]
[Result "0-1"]
[WhiteElo "1349"]
[BlackElo "1035"]
[TimeControl "180+1"]
[EndTime "9:37:10 PDT"]
[Termination "Uživatel Berzeger zvítězil na čas"]

1. e4 {[%clk 0:03:00.9]} 1... e5 {[%clk 0:03:00.2]} 2. Nf3 {[%clk 0:03:00.8]}
2... Nc6 {[%clk 0:03:00.6]} 3. Bb5 {[%clk 0:03:00.1]} 3... a6 {[%clk 0:03:00.1]}
4. Bxc6 {[%clk 0:02:59.4]} 4... dxc6 {[%clk 0:03:01]} 5. O-O {[%clk 0:02:58.8]}
5... Bc5 {[%clk 0:02:58.3]} 6. Nxe5 {[%clk 0:02:56.9]} 6... Nf6 {[%clk
0:02:54.4]} 7. Nc3 {[%clk 0:02:50]} 7... O-O {[%clk 0:02:51.3]} 8. Nf3 {[%clk
0:02:47.2]} 8... Re8 {[%clk 0:02:44]} 9. d3 {[%clk 0:02:46.9]} 9... Bg4 {[%clk
0:02:43.7]} 10. Re1 {[%clk 0:02:45.4]} 10... Qd7 {[%clk 0:02:37.4]} 11. Be3
{[%clk 0:02:41]} 11... Bd6 {[%clk 0:02:25.7]} 12. h3 {[%clk 0:02:20.7]} 12...
Bh5 {[%clk 0:02:17.3]} 13. Qe2 {[%clk 0:01:42.5]} 13... h6 {[%clk 0:02:03]} 14.
Bd2 {[%clk 0:01:41.6]} 14... b5 {[%clk 0:01:37.6]} 15. Qe3 {[%clk 0:01:35.3]}
15... Nh7 {[%clk 0:01:27.6]} 16. a3 {[%clk 0:01:15.4]} 16... a5 {[%clk 0:01:11]}
17. Ne2 {[%clk 0:00:55]} 17... a4 {[%clk 0:01:01]} 18. Ned4 {[%clk 0:00:49.7]}
18... Bc5 {[%clk 0:00:53.9]} 19. Bc3 {[%clk 0:00:33.1]} 19... Re6 {[%clk
0:00:38.4]} 20. g4 {[%clk 0:00:19.1]} 20... Rg6 {[%clk 0:00:31.2]} 21. Kh2
{[%clk 0:00:15.3]} 21... Bxg4 {[%clk 0:00:26.7]} 22. hxg4 {[%clk 0:00:14.6]}
22... Qxg4 {[%clk 0:00:26.2]} 23. Rg1 {[%clk 0:00:12.2]} 23... Qh5+ {[%clk
0:00:19]} 24. Nh4 {[%clk 0:00:03.9]} 24... Qxh4+ {[%clk 0:00:17.3]} 25. Qh3
{[%clk 0:00:04.3]} 25... Qf4+ {[%clk 0:00:10.8]} 26. Kh1 {[%clk 0:00:02.6]}
26... Rxg1+ {[%clk 0:00:04.2]} 27. Rxg1 {[%clk 0:00:01.9]} 27... Bxd4 {[%clk
0:00:03.7]} 28. Qg2 {[%clk 0:00:01.9]} 28... Qh4+ {[%clk 0:00:02.8]} 0-1

[Event "Betsys MČR v online bleskovém šachu 2021"]
[Site "Chess.com"]
[Date "2021.04.17"]
[Round "4"]
[White "Ladislav1969"]
[Black "MilosJi"]
[Result "0-1"]
[WhiteElo "2323"]
[BlackElo "2618"]
[TimeControl "180+1"]
[EndTime "9:37:13 PDT"]
[Termination "Uživatel MilosJi zvítězil po vzdání soupeře"]

1. e4 {[%clk 0:03:00.9]} 1... d5 {[%clk 0:02:59.7]} 2. exd5 {[%clk 0:02:59.8]}
2... Qxd5 {[%clk 0:02:56.5]} 3. Nc3 {[%clk 0:03:00.7]} 3... Qd6 {[%clk
0:02:56.4]} 4. d4 {[%clk 0:03:00.4]} 4... Nf6 {[%clk 0:02:56.9]} 5. Nf3 {[%clk
0:02:59.9]} 5... c6 {[%clk 0:02:57.3]} 6. g3 {[%clk 0:02:58.7]} 6... Bg4 {[%clk
0:02:56.7]} 7. Bf4 {[%clk 0:02:58.3]} 7... Qd8 {[%clk 0:02:56.4]} 8. Bg2 {[%clk
0:02:57.7]} 8... e6 {[%clk 0:02:56.7]} 9. O-O {[%clk 0:02:56.3]} 9... Be7 {[%clk
0:02:56.9]} 10. h3 {[%clk 0:02:53.6]} 10... Bh5 {[%clk 0:02:57]} 11. Qd2 {[%clk
0:02:48.1]} 11... Nbd7 {[%clk 0:02:54.4]} 12. Ne5 {[%clk 0:02:40.9]} 12... O-O
{[%clk 0:02:37.6]} 13. Rfe1 {[%clk 0:02:37.9]} 13... a5 {[%clk 0:02:33.1]} 14.
a3 {[%clk 0:02:29.3]} 14... Nxe5 {[%clk 0:02:24.9]} 15. Bxe5 {[%clk 0:02:28.7]}
15... Re8 {[%clk 0:02:16.4]} 16. Ne4 {[%clk 0:02:26.2]} 16... Bg6 {[%clk
0:02:07.7]} 17. Nxf6+ {[%clk 0:02:20.8]} 17... Bxf6 {[%clk 0:02:07.9]} 18. c3
{[%clk 0:02:17.5]} 18... a4 {[%clk 0:01:53.6]} 19. Rad1 {[%clk 0:02:16.9]} 19...
Ra5 {[%clk 0:01:53.1]} 20. Qf4 {[%clk 0:01:43.1]} 20... Rb5 {[%clk 0:01:40.6]}
21. Bxf6 {[%clk 0:01:39.8]} 21... Qxf6 {[%clk 0:01:37.7]} 22. Qxf6 {[%clk
0:01:39.4]} 22... gxf6 {[%clk 0:01:37.9]} 23. Rd2 {[%clk 0:01:39.5]} 23... Ra8
{[%clk 0:01:35.2]} 24. Bf1 {[%clk 0:01:38.8]} 24... Rd5 {[%clk 0:01:32.6]} 25.
Bc4 {[%clk 0:01:38.2]} 25... Rd6 {[%clk 0:01:30]} 26. Red1 {[%clk 0:01:32.3]}
26... Rad8 {[%clk 0:01:27]} 27. f4 {[%clk 0:01:29.7]} 27... h5 {[%clk
0:01:18.4]} 28. Kf2 {[%clk 0:01:29.4]} 28... Kf8 {[%clk 0:01:18.4]} 29. Ke3
{[%clk 0:01:29.4]} 29... Ke7 {[%clk 0:01:18.2]} 30. Bd3 {[%clk 0:01:25.6]} 30...
Bxd3 {[%clk 0:01:15.2]} 31. Rxd3 {[%clk 0:01:25]} 31... f5 {[%clk 0:01:11.4]}
32. Ke2 {[%clk 0:01:23.9]} 32... Rd5 {[%clk 0:01:11.4]} 33. R1d2 {[%clk
0:01:24]} 33... b5 {[%clk 0:01:04]} 34. Rd1 {[%clk 0:01:22]} 34... Kd6 {[%clk
0:01:03.1]} 35. Ke3 {[%clk 0:01:21.5]} 35... Kc7 {[%clk 0:01:03.3]} 36. Ke2
{[%clk 0:01:21.7]} 36... Kb6 {[%clk 0:01:03.5]} 37. R1d2 {[%clk 0:01:21.1]}
37... c5 {[%clk 0:00:56.5]} 38. dxc5+ {[%clk 0:01:10.2]} 38... Kxc5 {[%clk
0:00:56.5]} 39. Ke3 {[%clk 0:00:55.2]} 39... Rxd3+ {[%clk 0:00:50.3]} 40. Rxd3
{[%clk 0:00:55.4]} 40... Rxd3+ {[%clk 0:00:50.8]} 41. Kxd3 {[%clk 0:00:55.6]}
41... f6 {[%clk 0:00:48.8]} 42. Kd2 {[%clk 0:00:36.8]} 42... Kc4 {[%clk
0:00:48.6]} 43. Kc2 {[%clk 0:00:37]} 43... e5 {[%clk 0:00:48.8]} 44. Kd2 {[%clk
0:00:32.7]} 44... Kb3 {[%clk 0:00:47.9]} 45. Kc1 {[%clk 0:00:27.4]} 45... e4
{[%clk 0:00:45.8]} 46. Kb1 {[%clk 0:00:23.4]} 46... e3 {[%clk 0:00:45.3]} 47.
Kc1 {[%clk 0:00:23.6]} 47... e2 {[%clk 0:00:45.6]} 48. Kd2 {[%clk 0:00:23.8]}
48... Kxb2 {[%clk 0:00:46]} 49. Kxe2 {[%clk 0:00:24]} 49... Kxc3 {[%clk
0:00:45.6]} 50. Ke3 {[%clk 0:00:21.9]} 50... b4 {[%clk 0:00:45.1]} 51. axb4
{[%clk 0:00:16.9]} 51... a3 {[%clk 0:00:42]} 52. b5 {[%clk 0:00:15.9]} 52... a2
{[%clk 0:00:42.2]} 53. b6 {[%clk 0:00:16.8]} 53... a1=Q {[%clk 0:00:42.5]} 0-1

[Event "Betsys MČR v online bleskovém šachu 2021"]
[Site "Chess.com"]
[Date "2021.04.17"]
[Round "4"]
[White "viklan"]
[Black "Klokan64"]
[Result "1-0"]
[WhiteElo "1574"]
[BlackElo "1417"]
[TimeControl "180+1"]
[EndTime "9:37:13 PDT"]
[Termination "Uživatel viklan zvítězil po vzdání soupeře"]

1. d4 {[%clk 0:03:00.9]} 1... d6 {[%clk 0:02:58.9]} 2. c4 {[%clk 0:03:01.2]}
2... Nf6 {[%clk 0:02:58]} 3. Nf3 {[%clk 0:03:01.6]} 3... c6 {[%clk 0:02:57.9]}
4. g3 {[%clk 0:03:01.6]} 4... Bg4 {[%clk 0:02:56.7]} 5. Bg2 {[%clk 0:03:01.6]}
5... Qd7 {[%clk 0:02:55]} 6. O-O {[%clk 0:02:58.5]} 6... Bh3 {[%clk 0:02:50.8]}
7. Nc3 {[%clk 0:02:58]} 7... h5 {[%clk 0:02:48.7]} 8. Bg5 {[%clk 0:02:55.4]}
8... Nh7 {[%clk 0:02:38.8]} 9. Bf4 {[%clk 0:02:46.4]} 9... g5 {[%clk 0:01:51.1]}
10. Nxg5 {[%clk 0:02:38.2]} 10... Bxg2 {[%clk 0:01:40]} 11. Kxg2 {[%clk
0:02:35]} 11... Nxg5 {[%clk 0:01:35]} 12. Bxg5 {[%clk 0:02:34]} 12... Bh6 {[%clk
0:01:18.8]} 13. Bxh6 {[%clk 0:02:25.3]} 13... Rxh6 {[%clk 0:01:18.2]} 14. h4
{[%clk 0:02:24.7]} 14... Na6 {[%clk 0:01:13.6]} 15. Qd2 {[%clk 0:02:23]} 15...
Rf6 {[%clk 0:01:03.8]} 16. Ne4 {[%clk 0:02:02]} 16... Rf5 {[%clk 0:00:52.8]} 17.
b4 {[%clk 0:01:42.1]} 17... O-O-O {[%clk 0:00:50.4]} 18. a4 {[%clk 0:01:35.8]}
18... Rg8 {[%clk 0:00:49.1]} 19. b5 {[%clk 0:01:33.1]} 19... Nc7 {[%clk
0:00:44.6]} 20. bxc6 {[%clk 0:01:28.7]} 20... Qxc6 {[%clk 0:00:43.1]} 21. d5
{[%clk 0:01:20.1]} 21... Qxc4 {[%clk 0:00:37.4]} 22. Ng5 {[%clk 0:01:09.2]}
22... Qxd5+ {[%clk 0:00:28.4]} 23. Qxd5 {[%clk 0:00:59.9]} 23... Rxd5 {[%clk
0:00:28.4]} 24. Nxf7 {[%clk 0:00:57]} 24... Rd4 {[%clk 0:00:26.6]} 25. Ng5
{[%clk 0:00:54.5]} 25... Rxh4 {[%clk 0:00:25]} 26. gxh4 {[%clk 0:00:53.4]} 26...
Nd5 {[%clk 0:00:24.3]} 27. e3 {[%clk 0:00:49.9]} 27... Nf6 {[%clk 0:00:23.1]}
28. f3 {[%clk 0:00:47.1]} 28... Kd7 {[%clk 0:00:22.9]} 29. Rac1 {[%clk
0:00:45.9]} 29... Nd5 {[%clk 0:00:21.3]} 30. Rfe1 {[%clk 0:00:43.2]} 30... Rg6
{[%clk 0:00:19.5]} 31. Kf2 {[%clk 0:00:42.5]} 31... Rf6 {[%clk 0:00:18]} 32.
Red1 {[%clk 0:00:41.5]} 32... Nb4 {[%clk 0:00:13.4]} 33. Rc4 {[%clk 0:00:38.5]}
33... Nc6 {[%clk 0:00:12.9]} 34. Rdc1 {[%clk 0:00:31.4]} 34... d5 {[%clk
0:00:09.9]} 35. Rc5 {[%clk 0:00:27.3]} 35... Kd6 {[%clk 0:00:09.8]} 36. a5
{[%clk 0:00:19.6]} 36... e5 {[%clk 0:00:09.5]} 37. a6 {[%clk 0:00:18.3]} 37...
b6 {[%clk 0:00:08.2]} 38. Rxc6+ {[%clk 0:00:17.7]} 38... Kd7 {[%clk 0:00:07.1]}
39. Rxf6 {[%clk 0:00:18.6]} 1-0

[Event "Betsys MČR v online bleskovém šachu 2021"]
[Site "Chess.com"]
[Date "2021.04.17"]
[Round "4"]
[White "psvoboda72"]
[Black "Patrik_Kohm"]
[Result "1/2-1/2"]
[WhiteElo "1730"]
[BlackElo "1375"]
[TimeControl "180+1"]
[EndTime "9:37:14 PDT"]
[Termination "Remíza – nedostatek materiálu"]

1. e4 {[%clk 0:02:59.3]} 1... e6 {[%clk 0:03:00]} 2. d4 {[%clk 0:02:57.4]} 2...
d5 {[%clk 0:02:56.8]} 3. exd5 {[%clk 0:02:50.9]} 3... exd5 {[%clk 0:02:56]} 4.
Nf3 {[%clk 0:02:51.4]} 4... c5 {[%clk 0:02:55.2]} 5. Bb5+ {[%clk 0:02:48.7]}
5... Bd7 {[%clk 0:02:53.3]} 6. Bxd7+ {[%clk 0:02:45.6]} 6... Nxd7 {[%clk
0:02:54.2]} 7. O-O {[%clk 0:02:41.5]} 7... Ngf6 {[%clk 0:02:53]} 8. Bg5 {[%clk
0:02:38.3]} 8... Be7 {[%clk 0:02:50.5]} 9. Nc3 {[%clk 0:02:32.9]} 9... O-O
{[%clk 0:02:49.6]} 10. Ne5 {[%clk 0:02:29.4]} 10... cxd4 {[%clk 0:02:40.4]} 11.
Qxd4 {[%clk 0:02:25.1]} 11... Bc5 {[%clk 0:02:37.9]} 12. Bxf6 {[%clk 0:01:36.1]}
12... Qxf6 {[%clk 0:02:29.8]} 13. Qxd5 {[%clk 0:01:26.8]} 13... Qxe5 {[%clk
0:02:27.9]} 14. Qxd7 {[%clk 0:01:23.3]} 14... b6 {[%clk 0:02:26.5]} 15. Qd5
{[%clk 0:01:20.7]} 15... Qf6 {[%clk 0:02:21.5]} 16. Rad1 {[%clk 0:01:12.6]}
16... Rfd8 {[%clk 0:02:15.5]} 17. Qf3 {[%clk 0:01:08]} 17... Qxf3 {[%clk
0:02:10.8]} 18. gxf3 {[%clk 0:01:05]} 18... g6 {[%clk 0:02:07.4]} 19. Nd5 {[%clk
0:01:02.3]} 19... Rd6 {[%clk 0:02:02]} 20. c4 {[%clk 0:01:02.5]} 20... Rad8
{[%clk 0:02:01.5]} 21. a3 {[%clk 0:00:56.4]} 21... b5 {[%clk 0:01:59.2]} 22. b4
{[%clk 0:00:53.9]} 22... bxc4 {[%clk 0:01:46.8]} 23. Ne7+ {[%clk 0:00:49.2]}
23... Kg7 {[%clk 0:01:43.9]} 24. Rxd6 {[%clk 0:00:37.5]} 24... Bxd6 {[%clk
0:01:42.9]} 25. Nc6 {[%clk 0:00:35.4]} 25... Rc8 {[%clk 0:01:41.5]} 26. Nxa7
{[%clk 0:00:34]} 26... Ra8 {[%clk 0:01:36.3]} 27. Nb5 {[%clk 0:00:33.2]} 27...
c3 {[%clk 0:01:35.4]} 28. Nxc3 {[%clk 0:00:31.3]} 28... Rxa3 {[%clk 0:01:35.1]}
29. Nd5 {[%clk 0:00:29.3]} 29... Rd3 {[%clk 0:01:33]} 30. Ne3 {[%clk 0:00:24.6]}
30... Bxb4 {[%clk 0:01:31.9]} 31. Rd1 {[%clk 0:00:22.1]} 31... Ra3 {[%clk
0:01:28.1]} 32. Nd5 {[%clk 0:00:21]} 32... Bc5 {[%clk 0:01:22.8]} 33. Kg2 {[%clk
0:00:21.4]} 33... Ra2 {[%clk 0:01:21.4]} 34. Rf1 {[%clk 0:00:20]} 34... Rd2
{[%clk 0:01:20.8]} 35. Nc3 {[%clk 0:00:18.5]} 35... f5 {[%clk 0:01:15.5]} 36.
Na4 {[%clk 0:00:17]} 36... Ba7 {[%clk 0:01:14.2]} 37. Nc3 {[%clk 0:00:16]} 37...
Kf6 {[%clk 0:01:12.4]} 38. Nb5 {[%clk 0:00:14.6]} 38... Bb6 {[%clk 0:01:11.5]}
39. Na3 {[%clk 0:00:12.2]} 39... Kg5 {[%clk 0:01:10.4]} 40. Nc4 {[%clk
0:00:11.9]} 40... Rxf2+ {[%clk 0:01:00.4]} 41. Rxf2 {[%clk 0:00:10.1]} 41...
Bxf2 {[%clk 0:01:01.3]} 42. Kxf2 {[%clk 0:00:10]} 42... Kf4 {[%clk 0:01:01.4]}
43. Kg2 {[%clk 0:00:10.1]} 43... g5 {[%clk 0:01:01.5]} 44. Nd6 {[%clk
0:00:09.2]} 44... g4 {[%clk 0:01:01.4]} 45. fxg4 {[%clk 0:00:04.7]} 45... fxg4
{[%clk 0:01:01.5]} 46. Nf7 {[%clk 0:00:05.2]} 46... h5 {[%clk 0:01:00.6]} 47.
Nh6 {[%clk 0:00:04.5]} 47... Kg5 {[%clk 0:00:59.9]} 48. Nf7+ {[%clk 0:00:05]}
48... Kf4 {[%clk 0:00:59.6]} 49. Nd6 {[%clk 0:00:05.5]} 49... h4 {[%clk
0:00:58.8]} 50. Nc4 {[%clk 0:00:05.8]} 50... g3 {[%clk 0:00:55.6]} 51. hxg3+
{[%clk 0:00:05.6]} 51... hxg3 {[%clk 0:00:55.5]} 52. Nd2 {[%clk 0:00:05.1]}
52... Kg4 {[%clk 0:00:53.7]} 53. Nf1 {[%clk 0:00:05.5]} 53... Kf4 {[%clk
0:00:53.3]} 54. Nxg3 {[%clk 0:00:05.6]} 1/2-1/2

[Event "Betsys MČR v online bleskovém šachu 2021"]
[Site "Chess.com"]
[Date "2021.04.17"]
[Round "4"]
[White "matykov"]
[Black "Loveforever_Pepi"]
[Result "1-0"]
[WhiteElo "2015"]
[BlackElo "2282"]
[TimeControl "180+1"]
[EndTime "9:37:15 PDT"]
[Termination "Uživatel matykov zvítězil po vzdání soupeře"]

1. e4 {[%clk 0:03:00.9]} 1... c5 {[%clk 0:02:59.5]} 2. Nf3 {[%clk 0:03:00.5]}
2... d6 {[%clk 0:02:59]} 3. d4 {[%clk 0:03:01]} 3... cxd4 {[%clk 0:02:59.1]} 4.
Nxd4 {[%clk 0:03:01.9]} 4... Nf6 {[%clk 0:02:59.1]} 5. Nc3 {[%clk 0:03:01]} 5...
g6 {[%clk 0:02:59.6]} 6. Be3 {[%clk 0:03:00.6]} 6... Bg7 {[%clk 0:02:59.9]} 7.
f3 {[%clk 0:03:00]} 7... O-O {[%clk 0:02:59.9]} 8. Qd2 {[%clk 0:02:59.2]} 8...
Nc6 {[%clk 0:03:00.2]} 9. Bc4 {[%clk 0:02:59.4]} 9... Bd7 {[%clk 0:02:59.7]} 10.
O-O-O {[%clk 0:02:58.9]} 10... Ne5 {[%clk 0:02:59.5]} 11. Bb3 {[%clk 0:02:58.5]}
11... Qa5 {[%clk 0:02:59.6]} 12. h4 {[%clk 0:02:55.4]} 12... Rfc8 {[%clk
0:02:58.8]} 13. Kb1 {[%clk 0:02:38]} 13... Rab8 {[%clk 0:02:56]} 14. h5 {[%clk
0:02:22]} 14... Nxh5 {[%clk 0:02:49.4]} 15. g4 {[%clk 0:02:21.6]} 15... Nf6
{[%clk 0:02:49]} 16. Bh6 {[%clk 0:02:15.1]} 16... Bxh6 {[%clk 0:02:46.6]} 17.
Qxh6 {[%clk 0:01:56.5]} 17... Rxc3 {[%clk 0:02:43.7]} 18. bxc3 {[%clk
0:01:55.9]} 18... Qxc3 {[%clk 0:02:40]} 19. g5 {[%clk 0:01:06.8]} 19... Nh5
{[%clk 0:02:27.6]} 20. Rxh5 {[%clk 0:01:06.1]} 20... gxh5 {[%clk 0:02:27.5]} 21.
Qxh5 {[%clk 0:01:07]} 21... Nc4 {[%clk 0:00:22.2]} 22. Bxc4 {[%clk 0:01:05.7]}
22... Qxc4 {[%clk 0:00:22.6]} 23. Rh1 {[%clk 0:00:52.2]} 23... Qxd4 {[%clk
0:00:20.4]} 24. Qxh7+ {[%clk 0:00:51.5]} 24... Kf8 {[%clk 0:00:20.4]} 25. Qh8+
{[%clk 0:00:51.6]} 25... Qxh8 {[%clk 0:00:20.4]} 26. Rxh8+ {[%clk 0:00:51.6]}
26... Kg7 {[%clk 0:00:20.8]} 27. Rxb8 {[%clk 0:00:51.7]} 27... Bc6 {[%clk
0:00:20.8]} 28. Kb2 {[%clk 0:00:36.8]} 28... d5 {[%clk 0:00:14.3]} 29. e5 {[%clk
0:00:23.7]} 29... Kg6 {[%clk 0:00:12.5]} 30. Rf8 {[%clk 0:00:22.7]} 30... Bd7
{[%clk 0:00:08.3]} 31. Kc3 {[%clk 0:00:20.6]} 31... Be6 {[%clk 0:00:07.4]} 32.
Rb8 {[%clk 0:00:17.9]} 32... Kxg5 {[%clk 0:00:06.7]} 33. Rxb7 {[%clk 0:00:17.6]}
33... Kf4 {[%clk 0:00:07]} 34. Rxa7 {[%clk 0:00:17.2]} 34... Kxf3 {[%clk
0:00:06.7]} 35. Kd4 {[%clk 0:00:16.8]} 35... Ke2 {[%clk 0:00:04.1]} 36. a4
{[%clk 0:00:15.3]} 36... Kd2 {[%clk 0:00:04.1]} 37. c3 {[%clk 0:00:15.6]} 1-0

[Event "Betsys MČR v online bleskovém šachu 2021"]
[Site "Chess.com"]
[Date "2021.04.17"]
[Round "4"]
[White "Lunaticx"]
[Black "Krvelacny_krecek"]
[Result "1-0"]
[WhiteElo "3006"]
[BlackElo "2384"]
[TimeControl "180+1"]
[EndTime "9:37:16 PDT"]
[Termination "Uživatel Lunaticx zvítězil na čas"]

1. e4 {[%clk 0:03:00.9]} 1... e5 {[%clk 0:02:59.8]} 2. Nf3 {[%clk 0:03:00.1]}
2... Nc6 {[%clk 0:02:59.9]} 3. Bc4 {[%clk 0:02:59.8]} 3... Nf6 {[%clk
0:02:59.4]} 4. d3 {[%clk 0:02:59.3]} 4... Bc5 {[%clk 0:02:58.9]} 5. O-O {[%clk
0:02:58.5]} 5... O-O {[%clk 0:02:58]} 6. c3 {[%clk 0:02:58.6]} 6... d6 {[%clk
0:02:50.6]} 7. Re1 {[%clk 0:02:53.3]} 7... a6 {[%clk 0:02:47.9]} 8. a4 {[%clk
0:02:48]} 8... h6 {[%clk 0:02:35.6]} 9. h3 {[%clk 0:02:47.4]} 9... Ba7 {[%clk
0:02:34.6]} 10. Nbd2 {[%clk 0:02:46.8]} 10... Be6 {[%clk 0:02:30.7]} 11. b4
{[%clk 0:02:43.5]} 11... Ne7 {[%clk 0:02:27.2]} 12. Qb3 {[%clk 0:02:28]} 12...
Qd7 {[%clk 0:02:23.5]} 13. Bxe6 {[%clk 0:02:23.9]} 13... fxe6 {[%clk 0:02:12]}
14. Nf1 {[%clk 0:02:23.8]} 14... Ng6 {[%clk 0:02:08.6]} 15. Ng3 {[%clk
0:02:23.3]} 15... Kh7 {[%clk 0:02:05.6]} 16. Be3 {[%clk 0:02:16.4]} 16... Rf7
{[%clk 0:01:59.8]} 17. d4 {[%clk 0:02:12]} 17... exd4 {[%clk 0:01:52.2]} 18.
cxd4 {[%clk 0:02:01.6]} 18... Raf8 {[%clk 0:01:50.8]} 19. Nh2 {[%clk 0:01:58.5]}
19... d5 {[%clk 0:01:38.9]} 20. e5 {[%clk 0:01:56.4]} 20... Ng8 {[%clk
0:01:37.8]} 21. Qc2 {[%clk 0:01:49.8]} 21... Ne7 {[%clk 0:01:35.5]} 22. Rac1
{[%clk 0:01:42.9]} 22... c6 {[%clk 0:01:34.8]} 23. f4 {[%clk 0:01:29.4]} 23...
Nf5 {[%clk 0:01:33.3]} 24. Nxf5 {[%clk 0:01:27.9]} 24... Rxf5 {[%clk 0:01:32.7]}
25. g4 {[%clk 0:01:25.7]} 25... Rxf4 {[%clk 0:01:22.8]} 26. Bxf4 {[%clk
0:01:22.6]} 26... Rxf4 {[%clk 0:01:21.4]} 27. h4 {[%clk 0:01:15.4]} 27... Rxd4
{[%clk 0:01:06.3]} 28. Kh1 {[%clk 0:01:14.7]} 28... Rc4 {[%clk 0:01:02.5]} 29.
Qd3 {[%clk 0:01:13.5]} 29... Rd4 {[%clk 0:00:53.4]} 30. Qb1 {[%clk 0:01:05.7]}
30... Qe7 {[%clk 0:00:14.8]} 31. h5 {[%clk 0:01:04.4]} 31... Qg5 {[%clk
0:00:11.4]} 32. Qxg6+ {[%clk 0:01:01.7]} 32... Qxg6 {[%clk 0:00:11.4]} 33. hxg6+
{[%clk 0:01:02.6]} 33... Kxg6 {[%clk 0:00:11.7]} 34. b5 {[%clk 0:00:59]} 34...
axb5 {[%clk 0:00:10.6]} 35. axb5 {[%clk 0:00:59.9]} 35... c5 {[%clk 0:00:09.6]}
36. Red1 {[%clk 0:00:54.3]} 36... Rb4 {[%clk 0:00:09.1]} 37. Rb1 {[%clk
0:00:53.6]} 37... Rf4 {[%clk 0:00:07.1]} 38. b6 {[%clk 0:00:53.4]} 38... Bb8
{[%clk 0:00:06.8]} 39. Rf1 {[%clk 0:00:48.1]} 39... Re4 {[%clk 0:00:06.7]} 40.
Nf3 {[%clk 0:00:48]} 40... Bxe5 {[%clk 0:00:05.5]} 41. Rbe1 {[%clk 0:00:43.9]}
41... Rxe1 {[%clk 0:00:05.2]} 42. Rxe1 {[%clk 0:00:44.1]} 42... Bf4 {[%clk
0:00:04.9]} 43. Rxe6+ {[%clk 0:00:43]} 43... Kf7 {[%clk 0:00:05.5]} 44. Re2
{[%clk 0:00:41.6]} 44... c4 {[%clk 0:00:05.6]} 45. Kg2 {[%clk 0:00:38.6]} 45...
c3 {[%clk 0:00:03.7]} 46. Rc2 {[%clk 0:00:36.7]} 1-0